[Event "Reykjavik Open 2025"]
[Site "Reykjavik"]
[Date "2025.04.13"]
[Round "7.36"]
[White "Ptacnikova, Lenka"]
[Black "Heimisson, Hilmir Freyr"]
[Result "1/2-1/2"]
[Annotator "ChessBase"]
[ECO "D32"]
[WhiteElo "2142"]
[BlackElo "2376"]
[PlyCount "100"]
[EventDate "2025.04.09"]
[EventType "swiss"]
[EventCountry "ISL"]
[SourceTitle "playchess.com"]
[Source "ChessBase"]
[SourceQuality "1"]
[TimeControl "40/5400+30:1800+30"]

1. Nf3 {[%emt 0:00:05]} d5 {[%emt 0:03:36]} 2. e3 {[%emt 0:00:11]} Nf6 {[%emt 0:00:58]} 3. c4 {[%emt 0:00:28]} e6 {[%emt 0:00:09]} 4. Nc3 {[%emt 0:00:57]} c5 {[%emt 0:01:43]} 5. cxd5 {[%emt 0:00:41]} exd5 {[%emt 0:00:07]} 6. d4 {[%emt 0:01:48]} Nc6 {[%emt 0:00:40]} 7. Bb5 {[%emt 0:00:27]} Bd6 {[%emt 0:02:52]} 8. Ne5 {[%emt 0:15:18]} O-O {[%emt 0:02:33]} 9. Nxc6 {[%emt 0:03:02]} bxc6 {[%emt 0:00:09]} 10. Bxc6 {[%emt 0:02:03]} Rb8 {[%emt 0:00:20]} 11. dxc5 {[%emt 0:01:18]} Bxc5 {[%emt 0:00:57]} 12. O-O {[%emt 0:04:50]} Be6 {[%emt 0:13:47]} 13. Bb5 {[%emt 0:03:55]} Qc7 {[%emt 0:17:11]} 14. Be2 {[%emt 0:00:35]} Bd6 {[%emt 0:09:46]} 15. g3 {[%emt 0:04:55]} Be5 {[%emt 0:01:20]} 16. Nb5 {[%emt 0:03:53]} Qe7 {[%emt 0:06:13]} 17. Nd4 {[%emt 0:09:53]} Rb6 {[%emt 0:01:00]} 18. b3 {[%emt 0:00:42]} Bh3 {[%emt 0:01:35]} 19. Re1 {[%emt 0:05:12]} Ne4 {[%emt 0:00:41]} 20. Bb2 {[%emt 0:00:53]} Rf6 {[%emt 0:16:58]} 21. Bf3 {[%emt 0:08:02]} Nxf2 {[%emt 0:02:16]} 22. Kxf2 {[%emt 0:01:12]} Bg4 {[%emt 0:00:06]} 23. Nc6 {[%emt 0:00:49]} Rxc6 {[%emt 0:00:11]} 24. Bxg4 {[%emt 0:06:50]} Bxb2 {[%emt 0:00:15]} 25. Rb1 {[%emt 0:00:10]} Bc3 {[%emt 0:01:58]} 26. Re2 {[%emt 0:00:16]} Qe4 {[%emt 0:02:25]} 27. Bh3 {[%emt 0:01:24]} Rh6 {[%emt 0:02:56]} 28. Bg2 {[%emt 0:00:18]} Rxh2 {[%emt 0:00:06]} 29. Kg1 {[%emt 0:00:46]} Rxg2+ {[%emt 0:00:04]} 30. Rxg2 {[%emt 0:00:04]} Qxe3+ {[%emt 0:00:05]} 31. Kh1 {[%emt 0:01:33]} Qe4 {[%emt 0:03:10]} 32. Qc2 {[%emt 0:01:32]} Qe3 {[%emt 0:02:10]} 33. Rd1 {[%emt 0:04:35]} d4 {[%emt 0:01:04]} 34. Qd3 {[%emt 0:00:32]} Qh6+ {[%emt 0:00:11]} 35. Rh2 {[%emt 0:00:22]} Qc6+ {[%emt 0:00:04]} 36. Kg1 {[%emt 0:00:12]} g6 {[%emt 0:00:46]} 37. Re2 {[%emt 0:01:22]} Qc7 {[%emt 0:02:16]} 38. Rf1 {[%emt 0:03:05]} Ba5 {[%emt 0:01:20]} 39. Kg2 {[%emt 0:00:58]} Qb7+ {[%emt 0:01:17]} 40. Kh2 {[%emt 0:00:49]} Qd7 {[%emt 0:01:22]} 41. Rf4 {[%emt 0:32:02]} Bb6 {[%emt 0:31:04]} 42. Qc4 {[%emt 0:12:36]} Kg7 {[%emt 0:01:34]} 43. Rfe4 {[%emt 0:00:00]} Rd8 {[%emt 0:00:00]} 44. a4 {[%emt 0:00:00]} Qd6 {[%emt 0:00:00]} 45. b4 {[%emt 0:00:00]} Bc7 {[%emt 0:00:00]} 46. Rf4 {[%emt 0:00:00]} Qd7 {[%emt 0:00:00]} 47. Rfe4 {[%emt 0:00:00]} Qd6 {[%emt 0:00:00]} 48. Rf4 {[%emt 0:00:00]} Qd7 {[%emt 0:02:54]} 49. Rfe4 {[%emt 0:00:00]} Qd6 {[%emt 0:02:09]} 50. Rf4 {[%emt 0:00:00]} Qd7 {[%emt 0:00:29]} 1/2-1/2

[Event "Reykjavik Open 2025"]
[Site "Reykjavik"]
[Date "2025.04.13"]
[Round "7.37"]
[White "Thorfinnsson, Bragi"]
[Black "Beisteiner, Joachim"]
[Result "1-0"]
[Annotator "ChessBase"]
[ECO "B10"]
[WhiteElo "2375"]
[BlackElo "2097"]
[PlyCount "43"]
[EventDate "2025.04.09"]
[EventType "swiss"]
[EventCountry "ISL"]
[SourceTitle "playchess.com"]
[Source "ChessBase"]
[SourceQuality "1"]
[TimeControl "40/5400+30:1800+30"]

1. e4 {[%emt 0:01:33]} c6 {[%emt 0:00:23]} 2. Nf3 {[%emt 0:00:43]} d5 {[%emt 0:00:15]} 3. d3 {[%emt 0:00:31]} Qc7 {[%emt 0:01:57]} 4. Be2 {[%emt 0:04:16]} g6 {[%emt 0:00:55]} 5. Nc3 {[%emt 0:03:44]} Nf6 {[%emt 0:02:33]} 6. e5 {[%emt 0:04:54]} Nfd7 {[%emt 0:03:43]} 7. d4 {[%emt 0:02:11]} Bg7 {[%emt 0:02:28]} 8. Be3 {[%emt 0:04:33]} Nf8 {[%emt 0:21:19]} 9. Qd2 {[%emt 0:02:43]} h5 {[%emt 0:00:48]} 10. O-O-O {[%emt 0:04:26]} Bg4 {[%emt 0:01:24]} 11. h3 {[%emt 0:03:49]} Bxf3 {[%emt 0:00:44]} 12. Bxf3 {[%emt 0:00:18]} Nbd7 {[%emt 0:02:29]} 13. g4 {[%emt 0:02:30]} hxg4 {[%emt 0:06:48]} 14. Bxg4 {[%emt 0:00:40]} O-O-O {[%emt 0:05:41]} 15. Kb1 {[%emt 0:04:46]} f5 {[%emt 0:02:42]} 16. exf6 {[%emt 0:08:52]} Bxf6 {[%emt 0:02:01]} 17. Bf4 {[%emt 0:04:38]} e5 {[%emt 0:03:20]} 18. Bh2 {[%emt 0:00:57]} Re8 {[%emt 0:03:31]} 19. Rhe1 {[%emt 0:02:03]} Kd8 {[%emt 0:03:31]} 20. dxe5 {[%emt 0:05:02]} Nxe5 {[%emt 0:05:21]} 21. Nxd5 {[%emt 0:02:37]} cxd5 {[%emt 0:01:33]} 22. Qxd5+ {[%emt 0:00:28]} 1-0

[Event "Reykjavik Open 2025"]
[Site "Reykjavik"]
[Date "2025.04.13"]
[Round "7.38"]
[White "Song, Yuxin"]
[Black "Lohr, Matthias"]
[Result "1-0"]
[Annotator "ChessBase"]
[ECO "C88"]
[WhiteElo "2371"]
[BlackElo "2092"]
[PlyCount "119"]
[EventDate "2025.04.09"]
[EventType "swiss"]
[EventCountry "ISL"]
[SourceTitle "playchess.com"]
[Source "ChessBase"]
[SourceQuality "1"]
[TimeControl "40/5400+30:1800+30"]

1. e4 {[%emt 0:00:03]} e5 {[%emt 0:01:00]} 2. Nf3 {[%emt 0:00:05]} Nc6 {[%emt 0:00:07]} 3. Bb5 {[%emt 0:00:05]} a6 {[%emt 0:00:10]} 4. Ba4 {[%emt 0:00:04]} Nf6 {[%emt 0:00:11]} 5. O-O {[%emt 0:00:08]} Be7 {[%emt 0:00:07]} 6. d3 {[%emt 0:00:40]} b5 {[%emt 0:00:44]} 7. Bb3 {[%emt 0:00:06]} O-O {[%emt 0:00:09]} 8. a4 {[%emt 0:00:08]} b4 {[%emt 0:05:39]} 9. Re1 {[%emt 0:02:54]} d6 {[%emt 0:00:15]} 10. a5 {[%emt 0:01:19]} Rb8 {[%emt 0:23:02]} 11. Nbd2 {[%emt 0:00:32]} Re8 {[%emt 0:01:37]} 12. h3 {[%emt 0:03:38]} Bf8 {[%emt 0:00:45]} 13. Nc4 {[%emt 0:00:17]} h6 {[%emt 0:05:17]} 14. Ne3 {[%emt 0:07:51]} Nd4 {[%emt 0:04:36]} 15. Nxd4 {[%emt 0:03:32]} exd4 {[%emt 0:00:01]} 16. Nc4 {[%emt 0:00:20]} d5 {[%emt 0:02:11]} 17. exd5 {[%emt 0:00:07]} Rxe1+ {[%emt 0:06:20]} 18. Qxe1 {[%emt 0:00:01]} Bb7 {[%emt 0:00:12]} 19. Bf4 {[%emt 0:05:15]} Qxd5 {[%emt 0:08:19]} 20. Qf1 {[%emt 0:00:19]} Qc5 {[%emt 0:01:30]} 21. Re1 {[%emt 0:02:30]} Bd5 {[%emt 0:05:02]} 22. Be5 {[%emt 0:05:44]} Nd7 {[%emt 0:10:41]} 23. Bg3 {[%emt 0:00:12]} Qc6 {[%emt 0:02:22]} 24. f3 {[%emt 0:02:09]} Bxc4 {[%emt 0:01:16]} 25. Bxc4 {[%emt 0:00:09]} Bd6 {[%emt 0:00:02]} 26. Qf2 {[%emt 0:01:58]} Nf6 {[%emt 0:00:39]} 27. Be5 {[%emt 0:02:32]} Bxe5 {[%emt 0:03:43]} 28. Rxe5 {[%emt 0:00:01]} Qd6 {[%emt 0:00:06]} 29. f4 {[%emt 0:02:53]} Kf8 {[%emt 0:03:20]} 30. g3 {[%emt 0:06:35]} c5 {[%emt 0:01:42]} 31. Qf3 {[%emt 0:04:14]} Qc7 {[%emt 0:00:52]} 32. Kf2 {[%emt 0:03:21]} g6 {[%emt 0:02:20]} 33. b3 {[%emt 0:01:26]} Nd7 {[%emt 0:00:15]} 34. Re2 {[%emt 0:01:28]} Nf6 {[%emt 0:00:15]} 35. g4 {[%emt 0:02:41]} Re8 {[%emt 0:01:07]} 36. Rxe8+ {[%emt 0:05:45]} Nxe8 {[%emt 0:00:07]} 37. Qe4 {[%emt 0:01:28]} Qxa5 {[%emt 0:03:35]} 38. Qe5 {[%emt 0:00:01]} Qc7 {[%emt 0:01:39]} 39. Qh8+ {[%emt 0:01:02]} Ke7 {[%emt 0:00:01]} 40. Qxh6 {[%emt 0:00:06]} a5 {[%emt 0:02:49]} 41. Qg5+ {[%emt 0:32:28]} Kf8 {[%emt 0:30:41]} 42. Kg3 {[%emt 0:02:28]} Qd6 {[%emt 0:00:00]} 43. h4 {[%emt 0:00:00]} Nf6 {[%emt 0:00:00]} 44. Kf3 {[%emt 0:00:00]} Qc6+ {[%emt 0:00:00]} 45. Kf2 {[%emt 0:00:00]} Qd6 {[%emt 0:00:00]} 46. h5 {[%emt 0:00:00]} Qe7 {[%emt 0:00:00]} 47. Kf1 {[%emt 0:00:00]} gxh5 {[%emt 0:00:45]} 48. gxh5 {[%emt 0:00:00]} Ng8 {[%emt 0:03:25]} 49. h6 {[%emt 0:05:48]} Qxg5 {[%emt 0:00:26]} 50. fxg5 {[%emt 0:00:01]} Ne7 {[%emt 0:00:02]} 51. Kf2 {[%emt 0:00:08]} Nf5 {[%emt 0:01:03]} 52. Kf3 {[%emt 0:00:02]} Ne3 {[%emt 0:03:53]} 53. Bb5 {[%emt 0:04:14]} Nxc2 {[%emt 0:00:26]} 54. Ke4 {[%emt 0:00:01]} Na3 {[%emt 0:00:50]} 55. Ba4 {[%emt 0:00:35]} Nb1 {[%emt 0:00:56]} 56. Kf5 {[%emt 0:00:22]} Nc3 {[%emt 0:00:21]} 57. Bc6 {[%emt 0:00:09]} a4 {[%emt 0:00:21]} 58. Kf6 {[%emt 0:00:16]} Kg8 {[%emt 0:00:27]} 59. h7+ {[%emt 0:00:01]} Kh8 {[%emt 0:01:25]} 60. Kxf7 {[%emt 0:00:03]} 1-0

[Event "Reykjavik Open 2025"]
[Site "Reykjavik"]
[Date "2025.04.13"]
[Round "7.39"]
[White "Elier, Ali"]
[Black "Lohia, Sohum"]
[Result "1/2-1/2"]
[Annotator "ChessBase"]
[ECO "C58"]
[WhiteElo "2125"]
[BlackElo "2354"]
[PlyCount "56"]
[EventDate "2025.04.09"]
[EventType "swiss"]
[EventCountry "ISL"]
[SourceTitle "playchess.com"]
[Source "ChessBase"]
[SourceQuality "1"]
[TimeControl "40/5400+30:1800+30"]

1. e4 {[%emt 0:13:53]} e5 {[%emt 0:00:13]} 2. Nf3 {[%emt 0:00:03]} Nc6 {[%emt 0:00:09]} 3. Bc4 {[%emt 0:00:09]} Nf6 {[%emt 0:00:15]} 4. Ng5 {[%emt 0:00:05]} d5 {[%emt 0:00:09]} 5. exd5 {[%emt 0:00:05]} Na5 {[%emt 0:00:07]} 6. Bb5+ {[%emt 0:00:03]} Bd7 {[%emt 0:00:38]} 7. Qe2 {[%emt 0:00:05]} Be7 {[%emt 0:00:13]} 8. Bxd7+ {[%emt 0:21:37]} Qxd7 {[%emt 0:00:49]} 9. Qxe5 {[%emt 0:01:08]} O-O {[%emt 0:18:14]} 10. Qe2 {[%emt 0:13:20]} Nxd5 {[%emt 0:12:15]} 11. Nh3 {[%emt 0:00:20]} Qf5 {[%emt 0:23:25]} 12. Nc3 {[%emt 0:05:26]} Nc6 {[%emt 0:12:33]} 13. Nxd5 {[%emt 0:04:07]} Qxd5 {[%emt 0:00:07]} 14. O-O {[%emt 0:00:37]} Bd6 {[%emt 0:01:07]} 15. d3 {[%emt 0:04:50]} Nd4 {[%emt 0:01:28]} 16. Qd1 {[%emt 0:03:42]} Rae8 {[%emt 0:02:09]} 17. Kh1 {[%emt 0:03:10]} Ne2 {[%emt 0:05:37]} 18. Re1 {[%emt 0:01:01]} Qe5 {[%emt 0:03:32]} 19. Bf4 {[%emt 0:01:58]} Qxb2 {[%emt 0:00:36]} 20. Bxd6 {[%emt 0:03:36]} cxd6 {[%emt 0:01:30]} 21. Rb1 {[%emt 0:01:00]} Qxa2 {[%emt 0:00:50]} 22. Ra1 {[%emt 0:00:32]} Qb2 {[%emt 0:01:21]} 23. Rb1 {[%emt 0:00:05]} Qa2 {[%emt 0:01:36]} 24. Ra1 {[%emt 0:00:14]} Qb2 {[%emt 0:04:25]} 25. Rb1 {[%emt 0:00:34]} Qa2 {[%emt 0:05:21]} 26. Ra1 {[%emt 0:00:07]} Qb2 {[%emt 0:00:09]} 27. Rb1 Qe5 {[%emt 0:00:03]} 28. Qd2 {[%emt 0:00:11]} Qh5 {[%emt 0:00:03]} 1/2-1/2

[Event "Reykjavik Open 2025"]
[Site "Reykjavik"]
[Date "2025.04.13"]
[Round "7.40"]
[White "Kunz, Andre"]
[Black "Ruiz Buendia, Miguel"]
[Result "0-1"]
[Annotator "ChessBase"]
[ECO "B22"]
[WhiteElo "2115"]
[BlackElo "2353"]
[PlyCount "50"]
[EventDate "2025.04.09"]
[EventType "swiss"]
[EventCountry "ISL"]
[SourceTitle "playchess.com"]
[Source "ChessBase"]
[SourceQuality "1"]
[TimeControl "40/5400+30:1800+30"]

1. e4 {[%emt 0:00:02]} c5 {[%emt 0:03:47]} 2. c3 {[%emt 0:00:50]} Nf6 {[%emt 0:00:06]} 3. e5 {[%emt 0:00:06]} Nd5 {[%emt 0:00:05]} 4. d4 {[%emt 0:00:35]} cxd4 {[%emt 0:00:18]} 5. Nf3 {[%emt 0:00:34]} Nc6 {[%emt 0:00:34]} 6. cxd4 {[%emt 0:02:02]} d6 {[%emt 0:00:14]} 7. Bc4 {[%emt 0:02:26]} Nb6 {[%emt 0:00:12]} 8. Bb5 {[%emt 0:04:55]} dxe5 {[%emt 0:00:17]} 9. Nxe5 {[%emt 0:01:00]} Bd7 {[%emt 0:00:13]} 10. Bxc6 {[%emt 0:04:00]} Bxc6 {[%emt 0:02:36]} 11. Nxc6 {[%emt 0:01:44]} bxc6 {[%emt 0:02:06]} 12. O-O {[%emt 0:01:51]} g6 {[%emt 0:02:41]} 13. Qc2 {[%emt 0:11:54]} Rc8 {[%emt 0:02:14]} 14. Rd1 {[%emt 0:06:41]} Bg7 {[%emt 0:01:12]} 15. Be3 {[%emt 0:04:07]} Nd5 {[%emt 0:02:22]} 16. Qe2 {[%emt 0:05:20]} Qa5 {[%emt 0:09:00]} 17. Na3 {[%emt 0:04:38]} O-O {[%emt 0:01:45]} 18. Rac1 {[%emt 0:00:56]} Nxe3 {[%emt 0:05:06]} 19. Qxe3 {[%emt 0:00:54]} e6 {[%emt 0:04:05]} 20. Rd3 {[%emt 0:19:25]} Rfd8 {[%emt 0:02:50]} 21. Rcd1 {[%emt 0:13:13]} Rd7 {[%emt 0:07:50]} 22. Nc4 {[%emt 0:04:51]} Qxa2 {[%emt 0:01:36]} 23. b3 {[%emt 0:00:18]} Rcd8 {[%emt 0:01:20]} 24. h4 {[%emt 0:02:36]} Rxd4 {[%emt 0:06:43]} 25. Rxd4 {[%emt 0:00:45]} Bxd4 {[%emt 0:01:16]} 0-1

[Event "Reykjavik Open 2025"]
[Site "Reykjavik"]
[Date "2025.04.13"]
[Round "7.41"]
[White "Ravi Krishna G"]
[Black "Ragnarsson, Dagur"]
[Result "0-1"]
[Annotator "ChessBase"]
[ECO "D81"]
[WhiteElo "2100"]
[BlackElo "2352"]
[PlyCount "54"]
[EventDate "2025.04.09"]
[EventType "swiss"]
[EventCountry "ISL"]
[SourceTitle "playchess.com"]
[Source "ChessBase"]
[SourceQuality "1"]
[TimeControl "40/5400+30:1800+30"]

1. d4 {[%emt 0:00:36]} Nf6 {[%emt 0:00:06]} 2. c4 {[%emt 0:00:08]} g6 {[%emt 0:00:05]} 3. Nc3 {[%emt 0:00:08]} d5 {[%emt 0:00:05]} 4. Qb3 {[%emt 0:00:33]} dxc4 {[%emt 0:00:43]} 5. Qxc4 {[%emt 0:00:08]} Be6 {[%emt 0:00:03]} 6. Qb5+ {[%emt 0:00:38]} Bd7 {[%emt 0:00:38]} 7. Qb3 {[%emt 0:01:56]} c5 {[%emt 0:10:33]} 8. d5 {[%emt 0:10:44]} Qb6 {[%emt 0:14:12]} 9. Qxb6 {[%emt 0:05:20]} axb6 {[%emt 0:01:04]} 10. e4 {[%emt 0:00:21]} e6 {[%emt 0:03:54]} 11. Bf4 {[%emt 0:09:44]} Na6 {[%emt 0:02:54]} 12. Be5 {[%emt 0:20:02]} Be7 {[%emt 0:01:53]} 13. Bc4 {[%emt 0:09:02]} O-O {[%emt 0:06:16]} 14. dxe6 {[%emt 0:00:46]} Bxe6 {[%emt 0:00:06]} 15. Bxe6 {[%emt 0:00:12]} fxe6 {[%emt 0:00:03]} 16. Nf3 {[%emt 0:04:46]} Nb4 {[%emt 0:02:34]} 17. Ke2 {[%emt 0:01:36]} Nc6 {[%emt 0:09:57]} 18. Rhd1 {[%emt 0:02:34]} b5 {[%emt 0:01:38]} 19. Nxb5 {[%emt 0:07:14]} Nxe4 {[%emt 0:00:07]} 20. Nc7 {[%emt 0:04:40]} Rac8 {[%emt 0:03:13]} 21. Nb5 {[%emt 0:07:03]} Nxe5 {[%emt 0:03:21]} 22. Nxe5 {[%emt 0:00:24]} Rxf2+ {[%emt 0:00:05]} 23. Ke3 {[%emt 0:00:25]} Rxb2 {[%emt 0:05:18]} 24. Kxe4 {[%emt 0:01:32]} Re2+ {[%emt 0:00:37]} 25. Kf3 {[%emt 0:03:27]} Rxe5 {[%emt 0:00:06]} 26. Kf2 {[%emt 0:05:19]} c4 {[%emt 0:01:07]} 27. Nc3 {[%emt 0:00:48]} Bc5+ {[%emt 0:00:12]} 0-1

[Event "Reykjavik Open 2025"]
[Site "Reykjavik"]
[Date "2025.04.13"]
[Round "7.42"]
[White "Migot, Tangi"]
[Black "Tessiore, Luca G"]
[Result "1-0"]
[Annotator "ChessBase"]
[ECO "C84"]
[WhiteElo "2347"]
[BlackElo "2087"]
[PlyCount "143"]
[EventDate "2025.04.09"]
[EventType "swiss"]
[EventCountry "ISL"]
[SourceTitle "playchess.com"]
[Source "ChessBase"]
[SourceQuality "1"]
[TimeControl "40/5400+30:1800+30"]

1. e4 {[%emt 0:00:04]} e5 {[%emt 0:00:04]} 2. Nf3 {[%emt 0:00:07]} Nc6 {[%emt 0:00:04]} 3. Bb5 {[%emt 0:00:07]} a6 {[%emt 0:00:03]} 4. Ba4 {[%emt 0:00:07]} Nf6 {[%emt 0:00:05]} 5. d3 {[%emt 0:00:07]} b5 {[%emt 0:00:03]} 6. Bb3 {[%emt 0:00:07]} Be7 {[%emt 0:00:28]} 7. O-O {[%emt 0:01:10]} d6 {[%emt 0:00:06]} 8. Bd2 {[%emt 0:02:19]} Bg4 {[%emt 0:04:31]} 9. h3 {[%emt 0:01:52]} Bxf3 {[%emt 0:01:18]} 10. Qxf3 {[%emt 0:00:08]} Nd4 {[%emt 0:00:07]} 11. Qd1 {[%emt 0:00:46]} Nxb3 {[%emt 0:00:40]} 12. axb3 {[%emt 0:00:07]} O-O {[%emt 0:00:43]} 13. Nc3 {[%emt 0:01:04]} d5 {[%emt 0:04:10]} 14. exd5 {[%emt 0:09:48]} Nxd5 {[%emt 0:01:26]} 15. Re1 {[%emt 0:00:11]} Nxc3 {[%emt 0:01:23]} 16. Bxc3 {[%emt 0:04:53]} f6 {[%emt 0:00:48]} 17. Qg4 {[%emt 0:01:20]} Qd5 {[%emt 0:01:06]} 18. Ra2 {[%emt 0:10:15]} b4 {[%emt 0:02:10]} 19. Bd2 {[%emt 0:01:29]} Bc5 {[%emt 0:14:02]} 20. Rea1 {[%emt 0:07:32]} f5 {[%emt 0:02:20]} 21. Qc4 {[%emt 0:06:45]} Qxc4 {[%emt 0:00:07]} 22. bxc4 {[%emt 0:00:07]} b3 {[%emt 0:04:31]} 23. cxb3 {[%emt 0:00:23]} Rfd8 {[%emt 0:01:19]} 24. b4 {[%emt 0:14:03]} Rxd3 {[%emt 0:05:50]} 25. bxc5 {[%emt 0:01:25]} Rxd2 {[%emt 0:00:09]} 26. b4 {[%emt 0:00:09]} Rd4 {[%emt 0:01:55]} 27. b5 {[%emt 0:06:41]} Rxc4 {[%emt 0:00:16]} 28. Rxa6 {[%emt 0:00:42]} Rb8 {[%emt 0:00:19]} 29. Rc6 {[%emt 0:03:34]} Rb7 {[%emt 0:00:13]} 30. Ra8+ {[%emt 0:00:50]} Kf7 {[%emt 0:00:07]} 31. Rc8 {[%emt 0:00:05]} Rxb5 {[%emt 0:01:16]} 32. R8xc7+ {[%emt 0:02:20]} Kg8 {[%emt 0:04:09]} 33. Rc8+ {[%emt 0:02:45]} Kf7 {[%emt 0:00:05]} 34. R8c7+ {[%emt 0:00:05]} Kg8 {[%emt 0:00:02]} 35. Re6 {[%emt 0:00:51]} h6 {[%emt 0:00:11]} 36. Rxe5 {[%emt 0:00:11]} f4 {[%emt 0:00:34]} 37. Ree7 {[%emt 0:04:18]} Rbxc5 {[%emt 0:02:56]} 38. Rxg7+ {[%emt 0:00:10]} Kh8 {[%emt 0:00:16]} 39. Rh7+ {[%emt 0:00:45]} Kg8 {[%emt 0:00:06]} 40. Rhg7+ {[%emt 0:00:24]} Kh8 {[%emt 0:00:09]} 41. Rh7+ {[%emt 0:30:03]} Kg8 {[%emt 0:30:04]} 42. Rxc5 {[%emt 0:01:59]} Rxc5 {[%emt 0:00:06]} 43. Rxh6 {[%emt 0:00:05]} Rc1+ {[%emt 0:00:15]} 44. Kh2 {[%emt 0:00:05]} Rc2 {[%emt 0:00:04]} 45. f3 {[%emt 0:00:07]} Kg7 {[%emt 0:00:28]} 46. Re6 {[%emt 0:00:19]} Rc8 {[%emt 0:00:42]} 47. h4 {[%emt 0:00:34]} Rf8 {[%emt 0:00:31]} 48. Kh3 {[%emt 0:00:42]} Kh7 {[%emt 0:00:09]} 49. Re5 {[%emt 0:00:32]} Kh6 {[%emt 0:00:32]} 50. Kg4 {[%emt 0:00:09]} Rf7 {[%emt 0:01:34]} 51. Rh5+ {[%emt 0:06:04]} Kg6 {[%emt 0:00:22]} 52. Rg5+ {[%emt 0:00:56]} Kh6 {[%emt 0:00:07]} 53. Kh3 {[%emt 0:03:43]} Rf8 {[%emt 0:00:56]} 54. Kh2 {[%emt 0:00:08]} Rf7 {[%emt 0:01:59]} 55. Kg1 {[%emt 0:03:35]} Rf8 {[%emt 0:00:14]} 56. Kf2 {[%emt 0:00:06]} Rf7 {[%emt 0:00:20]} 57. Ke2 {[%emt 0:02:28]} Rd7 {[%emt 0:00:17]} 58. Rg4 {[%emt 0:00:27]} Re7+ {[%emt 0:01:29]} 59. Kd2 {[%emt 0:00:04]} Rd7+ {[%emt 0:00:07]} 60. Kc3 {[%emt 0:00:37]} Kh5 {[%emt 0:01:04]} 61. Rxf4 {[%emt 0:00:19]} Rg7 {[%emt 0:00:04]} 62. g4+ {[%emt 0:00:25]} Kxh4 {[%emt 0:00:05]} 63. Kd3 {[%emt 0:01:08]} Ra7 {[%emt 0:03:56]} 64. Rf5 {[%emt 0:00:40]} Ra3+ {[%emt 0:00:07]} 65. Ke4 {[%emt 0:00:08]} Ra4+ {[%emt 0:00:03]} 66. Ke5 {[%emt 0:00:05]} Ra5+ {[%emt 0:00:03]} 67. Kf6 {[%emt 0:00:07]} Ra6+ {[%emt 0:00:03]} 68. Kg7 {[%emt 0:00:06]} Ra7+ {[%emt 0:00:02]} 69. Kg6 {[%emt 0:00:07]} Ra6+ {[%emt 0:00:04]} 70. Rf6 {[%emt 0:00:07]} Ra5 {[%emt 0:00:08]} 71. Kh6 {[%emt 0:00:24]} Rb5 {[%emt 0:00:32]} 72. g5 {[%emt 0:00:41]} 1-0

[Event "Reykjavik Open 2025"]
[Site "Reykjavik"]
[Date "2025.04.13"]
[Round "7.43"]
[White "Mensing, Adrian"]
[Black "Haug, Havard"]
[Result "0-1"]
[Annotator "ChessBase"]
[ECO "E16"]
[WhiteElo "2078"]
[BlackElo "2339"]
[PlyCount "44"]
[EventDate "2025.04.09"]
[EventType "swiss"]
[EventCountry "ISL"]
[SourceTitle "playchess.com"]
[Source "ChessBase"]
[SourceQuality "1"]
[TimeControl "40/5400+30:1800+30"]

1. d4 {[%emt 0:05:38]} Nf6 {[%emt 0:00:48]} 2. c4 {[%emt 0:00:23]} e6 {[%emt 0:00:16]} 3. g3 {[%emt 0:00:19]} d5 {[%emt 0:00:14]} 4. Bg2 {[%emt 0:00:10]} Bb4+ {[%emt 0:00:09]} 5. Nd2 {[%emt 0:00:13]} O-O {[%emt 0:00:13]} 6. Ngf3 {[%emt 0:00:09]} b6 {[%emt 0:01:12]} 7. O-O {[%emt 0:00:35]} Bb7 {[%emt 0:00:10]} 8. cxd5 {[%emt 0:00:24]} exd5 {[%emt 0:00:07]} 9. a3 {[%emt 0:00:26]} Bd6 {[%emt 0:01:59]} 10. b4 {[%emt 0:03:49]} Nbd7 {[%emt 0:02:47]} 11. Bb2 {[%emt 0:02:34]} Re8 {[%emt 0:02:19]} 12. Re1 {[%emt 0:01:30]} Qe7 {[%emt 0:03:53]} 13. Nf1 {[%emt 0:05:15]} Ne4 {[%emt 0:06:41]} 14. Rc1 {[%emt 0:07:52]} Ndf6 {[%emt 0:13:22]} 15. Qd3 {[%emt 0:08:41]} Ng4 {[%emt 0:04:29]} 16. Nh4 {[%emt 0:14:09]} Ngxf2 {[%emt 0:02:28]} 17. Qf3 {[%emt 0:00:18]} Bc8 {[%emt 0:02:27]} 18. Ne3 {[%emt 0:04:52]} Nh3+ {[%emt 0:00:53]} 19. Bxh3 {[%emt 0:00:29]} Ng5 {[%emt 0:00:14]} 20. Bxc8 {[%emt 0:04:15]} Nxf3+ {[%emt 0:00:07]} 21. exf3 {[%emt 0:00:05]} Raxc8 {[%emt 0:00:08]} 22. Nhf5 {[%emt 0:03:24]} Qd7 {[%emt 0:00:14]} 0-1